fUSD/lending_fUSD_20241205
["ID","MTS","AMOUNT","RATE_DAILY","PERIOD"]
[344363347,1733376632344,-610.4,7.499e-05,2]
[344363349,1733376632354,-610.4,7.499e-05,2]
[344363351,1733376632363,-610.4,7.499e-05,2]
[344363353,1733376632373,-610.4,7.499e-05,2]
[344363356,1733376632383,-610.4,7.499e-05,2]
[344363357,1733376632392,-610.4,7.499e-05,2]
[344363360,1733376632401,-610.4,7.499e-05,2]
[344363362,1733376632411,-610.4,7.499e-05,2]
[344363364,1733376632421,-610.4,7.499e-05,2]
[344363366,1733376632431,-610.4,7.499e-05,2]
[344363368,1733376632440,-610.4,7.499e-05,2]
[344363370,1733376632450,-610.4,7.499e-05,2]
[344363372,1733376632459,-610.4,7.499e-05,2]
[344363374,1733376632470,-610.4,7.499e-05,2]
[344363375,1733376632479,-610.48298605,7.499e-05,2]
[344363377,1733376632488,-668.57,7.499e-05,2]
[344363379,1733376632498,-668.57,7.499e-05,2]
[344363381,1733376632507,-668.57,7.499e-05,2]
[344363383,1733376632518,-668.57,7.499e-05,2]
[344363386,1733376632527,-668.57,7.499e-05,2]
[344363388,1733376632537,-668.57,7.499e-05,2]
[344363389,1733376632546,-668.57,7.499e-05,2]
[344363391,1733376632556,-668.57,7.499e-05,2]
[344363394,1733376632566,-668.57,7.499e-05,2]
[344363396,1733376632576,-668.57,7.499e-05,2]
[344363397,1733376632586,-668.57,7.499e-05,2]
[344363399,1733376632595,-668.57,7.499e-05,2]
[344363401,1733376632604,-668.57,7.499e-05,2]
[344363402,1733376632614,-668.57,7.499e-05,2]
[344363404,1733376632623,-668.57,7.499e-05,2]
[344363406,1733376632633,-668.57,7.499e-05,2]
[344363407,1733376632642,-668.57,7.499e-05,2]
[344363409,1733376632651,-668.57,7.499e-05,2]
[344363411,1733376632662,-668.57,7.499e-05,2]
[344363413,1733376632671,-668.57,7.499e-05,2]
[344363415,1733376632680,-668.57,7.499e-05,2]
[344363416,1733376632690,-668.57,7.499e-05,2]
[344363418,1733376632699,-668.57,7.499e-05,2]
[344363420,1733376632709,-668.64822668,7.499e-05,2]
[344363422,1733376632720,-500.0,7.499e-05,2]
[344363423,1733376632729,-405.74496756,7.499e-05,2]
[344363425,1733376632738,-500.0,7.499e-05,2]
[344363427,1733376632748,-500.0,7.499e-05,2]
[344363429,1733376632757,-500.0,7.499e-05,2]
[344363430,1733376632767,-500.0,7.499e-05,2]
[344363432,1733376632777,-500.0,7.499e-05,2]
[344363434,1733376632786,-500.0,7.499e-05,2]
[344363436,1733376632796,-500.0,7.499e-05,2]
[344363437,1733376632805,-500.0,7.499e-05,2]
[344363439,1733376632815,-500.0,7.499e-05,2]
[344363441,1733376632824,-500.0,7.499e-05,2]
[344363443,1733376632834,-500.0,7.499e-05,2]
[344363444,1733376632844,-500.0,7.499e-05,2]
[344363446,1733376632853,-500.0,7.499e-05,2]
[344363448,1733376632863,-500.0,7.499e-05,2]
[344363450,1733376632872,-500.0,7.499e-05,2]
[344363452,1733376632881,-500.0,7.499e-05,2]
[344363453,1733376632890,-500.0,7.499e-05,2]
[344363455,1733376632900,-500.0,7.499e-05,2]
[344363457,1733376632909,-574.4,7.499e-05,2]
[344363458,1733376632918,-186.12089066,7.499e-05,2]
[344363460,1733376632927,-500.0,7.499e-05,2]
[344363462,1733376632937,-229.80017354,7.499e-05,2]
[344363463,1733376632948,-500.0,7.499e-05,2]
[344363464,1733376632957,-6485.76201787,7.5e-05,2]
[344363465,1733376632972,-88709.00421948,7.5e-05,2]
[344363466,1733376632983,-10338.746336,7.5e-05,2]
[344363467,1733376633011,-1118269.11620899,7.5e-05,2]
[344363468,1733376633080,-15483.402634,7.5e-05,2]
[344363469,1733376633094,-1923.85423545,7.5e-05,2]
[344363470,1733376633139,-6552.94815234,7.5e-05,2]
[344363503,1733376637915,-500.0,7.473e-05,2]
[344363504,1733376637926,-250.77801155,7.5e-05,2]
[344363505,1733376637939,-8522049.89161288,7.5e-05,2]
[344363506,1733376638067,-22323.91042253,7.5e-05,2]
[344363507,1733376638079,-3933.28328103,7.5e-05,2]
[344363508,1733376638096,-71600.0,7.5e-05,2]
[344363509,1733376638107,-443.81585153,7.5e-05,2]
[344363510,1733376638119,-1631.0,7.5e-05,2]
[344363511,1733376638184,-149.15150678,7.5e-05,2]
[344363512,1733376638195,-15391.7,7.5e-05,2]
[344363513,1733376638259,-697.22222227,7.5e-05,2]
[344363514,1733376638271,-562.99496502,7.5e-05,2]
[344363655,1733376639771,-640.8,7.5e-05,2]
[344363682,1733376640021,-1084.99755771,7.5e-05,2]
[344363685,1733376640042,-571.72170112,7.5e-05,2]
[344363687,1733376640055,-338.108,7.5e-05,2]
[344363698,1733376640162,-828.57500002,7.5e-05,2]
[344363701,1733376640174,-658.7300751,7.5e-05,2]
[344363703,1733376640185,-20676.0,7.5e-05,2]
[344363706,1733376640207,-4312.468795,7.5e-05,2]
[344363708,1733376640219,-1538.40752189,7.5e-05,2]
[344363829,1733376642953,-1046.90000048,7.5e-05,2]
[344363830,1733376642965,-361763.92296658,7.5e-05,2]
[344363831,1733376642977,-31266.70241041,7.5e-05,2]
[344363832,1733376643025,-3098.36916934,7.5e-05,2]
[344363833,1733376643038,-3865.04130345,7.5e-05,2]
[344363834,1733376643050,-18590.2753434,7.5e-05,2]
[344363835,1733376643062,-2699.83,7.5e-05,2]
[344363981,1733376645909,-77601.49156398,7.5e-05,2]
[344363982,1733376645920,-23720.73500004,7.5e-05,2]
[344363983,1733376645933,-9691.90406424,7.5e-05,2]
[344363984,1733376645944,-6800.0,7.5e-05,2]
[344363985,1733376645956,-8661.885694,7.5e-05,2]
[344363986,1733376645967,-14968.70392,7.5e-05,2]
[344363987,1733376645980,-22342.0908,7.5e-05,2]
[344363988,1733376645993,-27686.29024,7.5e-05,2]
[344363989,1733376646005,-19192.6977,7.5e-05,2]
[344363990,1733376646018,-15244.10415,7.5e-05,2]
[344363991,1733376646030,-37058.4,7.5e-05,2]
[344363992,1733376646123,-5184.849,7.5e-05,2]
[344363993,1733376646202,-3855.0,7.5e-05,2]
[344363994,1733376646214,-20674.0,7.5e-05,2]
[344363995,1733376646281,-72496.424,7.5e-05,2]
[344363998,1733376646293,-480.26971925,7.5e-05,2]
[344364014,1733376647951,500.0,6.2e-05,2]
[344364015,1733376650106,1100.0,6.3e-05,2]
[344364016,1733376652208,1600.0,6.4e-05,2]
[344364017,1733376654305,2200.0,6.5e-05,2]
[344364018,1733376656402,2.31,6.6e-05,2]
[344364019,1733376656435,2797.69,6.6e-05,2]
[344364020,1733376658737,500.0,6.7e-05,2]
[344364021,1733376660825,500.0,6.8e-05,2]
[344364022,1733376662917,500.0,6.9e-05,2]
[344364023,1733376665017,500.0,7e-05,2]
[344364026,1733376702452,250.0,6.951e-05,2]
[344364027,1733376913438,284.56,7.04e-05,2]
[344364030,1733377317629,250.0,6.773e-05,2]
[344364031,1733377502271,908.17,6.721e-05,2]
[344364043,1733377832027,-2297.0,7.397e-05,2]
[344364044,1733377832038,-483.62,7.397e-05,2]
[344364045,1733377832048,-2500.0,7.4e-05,2]
[344364046,1733377832058,-11269.08389917,7.43e-05,2]
[344364047,1733377832070,-500.0,7.473e-05,2]
[344364048,1733377832080,-872.443232,7.478e-05,2]
[344364049,1733377832089,-150.0,7.479e-05,2]
[344364050,1733377832099,-500.0,7.479e-05,2]
[344364051,1733377832108,-150.0,7.497e-05,2]
[344364052,1733377832118,-150.0,7.498e-05,2]
[344364053,1733377832127,-150.0,7.498e-05,2]
[344364054,1733377832137,-150.0,7.498e-05,2]
[344364055,1733377832146,-150.0,7.498e-05,2]
[344364056,1733377832155,-150.0,7.498e-05,2]
[344364057,1733377832165,-150.0,7.498e-05,2]
[344364058,1733377832176,-150.0,7.498e-05,2]
[344364059,1733377832186,-150.0,7.498e-05,2]
[344364060,1733377832196,-150.0,7.498e-05,2]
[344364061,1733377832206,-150.0,7.498e-05,2]
[344364062,1733377832216,-150.0,7.498e-05,2]
[344364063,1733377832225,-150.0,7.498e-05,2]
[344364064,1733377832235,-150.0,7.498e-05,2]
[344364065,1733377832244,-150.0,7.498e-05,2]
[344364066,1733377832255,-150.0,7.498e-05,2]
[344364067,1733377832265,-150.0,7.498e-05,2]
[344364068,1733377832274,-150.0,7.498e-05,2]
[344364069,1733377832284,-150.0,7.498e-05,2]
[344364070,1733377832294,-150.0,7.498e-05,2]
[344364071,1733377832303,-7192.38680618,7.498e-05,2]
[344364072,1733377832313,-194.20435917,7.499e-05,2]
[344364073,1733377832323,-19418.2889015,7.499e-05,2]
[344364074,1733377832332,-500.0,7.499e-05,2]
[344364075,1733377832342,-500.0,7.499e-05,2]
[344364076,1733377832351,-326.67343778,7.499e-05,2]
[344364077,1733377832361,-197.5509,7.499e-05,2]
[344364078,1733377832370,-500.0,7.499e-05,2]
[344364079,1733377832380,-636.86,7.499e-05,2]
[344364080,1733377832389,-636.86,7.499e-05,2]
[344364081,1733377832399,-636.86,7.499e-05,2]
[344364082,1733377832409,-636.86,7.499e-05,2]
[344364083,1733377832418,-636.86,7.499e-05,2]
[344364084,1733377832428,-636.86,7.499e-05,2]
[344364085,1733377832437,-636.86,7.499e-05,2]
[344364086,1733377832447,-636.86,7.499e-05,2]
[344364087,1733377832463,-636.86,7.499e-05,2]
[344364089,1733377832472,-636.86,7.499e-05,2]
[344364091,1733377832482,-636.86,7.499e-05,2]
[344364092,1733377832492,-636.86,7.499e-05,2]
[344364094,1733377832503,-636.86,7.499e-05,2]
[344364096,1733377832513,-636.86,7.499e-05,2]
[344364097,1733377832522,-636.86,7.499e-05,2]
[344364099,1733377832531,-636.86,7.499e-05,2]
[344364101,1733377832543,-636.86,7.499e-05,2]
[344364103,1733377832552,-636.86,7.499e-05,2]
[344364105,1733377832562,-636.86,7.499e-05,2]
[344364107,1733377832571,-636.86,7.499e-05,2]
[344364109,1733377832581,-636.86,7.499e-05,2]
[344364111,1733377832590,-636.86,7.499e-05,2]
[344364113,1733377832600,-636.86,7.499e-05,2]
[344364115,1733377832609,-637.06977466,7.499e-05,2]
[344364117,1733377832619,-245.66702761,7.499e-05,2]
[344364118,1733377832629,-500.0,7.499e-05,2]
[344364119,1733377832638,-500.0,7.499e-05,2]
[344364120,1733377832648,-500.0,7.499e-05,2]
[344364121,1733377832657,-500.0,7.499e-05,2]
[344364122,1733377832666,-796.38,7.499e-05,2]
[344364123,1733377832676,-796.38,7.499e-05,2]
[344364124,1733377832685,-796.38,7.499e-05,2]
[344364125,1733377832694,-796.38,7.499e-05,2]
[344364126,1733377832704,-796.38,7.499e-05,2]
[344364127,1733377832715,-796.38,7.499e-05,2]
[344364128,1733377832725,-796.38,7.499e-05,2]
[344364129,1733377832735,-796.38,7.499e-05,2]
[344364130,1733377832744,-796.38,7.499e-05,2]
[344364131,1733377832753,-796.38,7.499e-05,2]
[344364132,1733377832763,-796.38,7.499e-05,2]
[344364133,1733377832774,-796.38,7.499e-05,2]
[344364134,1733377832784,-796.38,7.499e-05,2]
[344364135,1733377832793,-796.38,7.499e-05,2]
[344364136,1733377832803,-796.38,7.499e-05,2]
[344364137,1733377832812,-796.38,7.499e-05,2]
[344364138,1733377832821,-796.38,7.499e-05,2]
[344364139,1733377832831,-796.38,7.499e-05,2]
[344364140,1733377832840,-796.38,7.499e-05,2]
[344364141,1733377832850,-796.38,7.499e-05,2]
[344364142,1733377832859,-796.38,7.499e-05,2]
[344364143,1733377832869,-796.38,7.499e-05,2]
[344364144,1733377832878,-796.38,7.499e-05,2]
[344364145,1733377832888,-796.40088749,7.499e-05,2]
[344364146,1733377832897,-1128.4,7.499e-05,2]
[344364147,1733377832906,-500.0,7.499e-05,2]
[344364148,1733377832916,-500.0,7.499e-05,2]
[344364149,1733377832925,-500.0,7.499e-05,2]
[344364150,1733377832935,-500.0,7.499e-05,2]
[344364151,1733377832945,-500.0,7.499e-05,2]
[344364152,1733377832956,-500.0,7.499e-05,2]
[344364153,1733377832966,-500.0,7.499e-05,2]
[344364154,1733377832975,-500.0,7.499e-05,2]
[344364155,1733377832985,-500.0,7.499e-05,2]
[344364156,1733377832995,-500.0,7.499e-05,2]
[344364157,1733377833004,-500.0,7.499e-05,2]
[344364158,1733377833014,-500.0,7.499e-05,2]
[344364159,1733377833024,-407.13,7.499e-05,2]
[344364160,1733377833033,-598.00364707,7.499e-05,2]
[344364161,1733377833043,-479.7404297,7.499e-05,2]
[344364162,1733377833053,-254.34310713,7.499e-05,2]
[344364163,1733377833063,-470.16624034,7.499e-05,2]
[344364164,1733377833073,-736.07,7.499e-05,2]
[344364165,1733377833083,-736.07,7.499e-05,2]
[344364166,1733377833093,-736.07,7.499e-05,2]
[344364167,1733377833103,-736.07,7.499e-05,2]
[344364168,1733377833113,-736.07,7.499e-05,2]
[344364169,1733377833122,-736.07,7.499e-05,2]
[344364170,1733377833132,-736.07,7.499e-05,2]
[344364171,1733377833142,-736.07,7.499e-05,2]
[344364172,1733377833152,-736.07,7.499e-05,2]
[344364173,1733377833162,-736.07,7.499e-05,2]
[344364174,1733377833172,-736.07,7.499e-05,2]
[344364175,1733377833183,-736.07,7.499e-05,2]
[344364176,1733377833193,-736.07,7.499e-05,2]
[344364177,1733377833203,-736.07,7.499e-05,2]
[344364178,1733377833215,-736.07,7.499e-05,2]
[344364179,1733377833225,-736.07,7.499e-05,2]
[344364180,1733377833234,-736.07,7.499e-05,2]
[344364181,1733377833244,-736.07,7.499e-05,2]
[344364182,1733377833253,-736.07,7.499e-05,2]
[344364183,1733377833263,-736.07,7.499e-05,2]
[344364184,1733377833273,-736.07,7.499e-05,2]
[344364185,1733377833282,-736.07,7.499e-05,2]
[344364186,1733377833292,-736.07,7.499e-05,2]
[344364187,1733377833301,-736.15303215,7.499e-05,2]
[344364188,1733377833311,-500.0,7.499e-05,2]
[344364189,1733377833321,-500.0,7.499e-05,2]
[344364190,1733377833331,-500.0,7.499e-05,2]
[344364191,1733377833340,-500.0,7.499e-05,2]
[344364192,1733377833350,-500.0,7.499e-05,2]
[344364193,1733377833360,-500.0,7.499e-05,2]
[344364194,1733377833369,-500.0,7.499e-05,2]
[344364195,1733377833379,-317.52,7.499e-05,2]
[344364196,1733377833388,-468.57209279,7.499e-05,2]
[344364197,1733377833398,-24820.54871549,7.499e-05,2]
[344364198,1733377833407,-500.0,7.499e-05,2]
[344364200,1733377833417,-500.0,7.499e-05,2]
[344364201,1733377833427,-500.0,7.499e-05,2]
[344364203,1733377833436,-500.0,7.499e-05,2]
[344364205,1733377833446,-500.0,7.499e-05,2]
[344364206,1733377833457,-288.56650759,7.499e-05,2]
[344364207,1733377833471,-519.51,7.499e-05,2]
[344364208,1733377833481,-519.51,7.499e-05,2]
[344364209,1733377833492,-500.0,7.499e-05,2]
[344364210,1733377833503,-519.51,7.499e-05,2]
[344364211,1733377833513,-500.0,7.499e-05,2]
[344364212,1733377833523,-519.51,7.499e-05,2]
[344364213,1733377833534,-500.0,7.499e-05,2]
[344364214,1733377833545,-519.51,7.499e-05,2]
[344364215,1733377833555,-500.0,7.499e-05,2]
[344364216,1733377833564,-519.51,7.499e-05,2]
[344364217,1733377833574,-519.51,7.499e-05,2]
[344364218,1733377833584,-519.51,7.499e-05,2]
[344364219,1733377833594,-519.51,7.499e-05,2]
[344364220,1733377833604,-519.51,7.499e-05,2]
[344364221,1733377833614,-519.51,7.499e-05,2]
[344364222,1733377833624,-519.51,7.499e-05,2]
[344364223,1733377833634,-519.51,7.499e-05,2]
[344364224,1733377833644,-519.51,7.499e-05,2]
[344364225,1733377833653,-519.51,7.499e-05,2]
[344364226,1733377833663,-519.51,7.499e-05,2]
[344364227,1733377833673,-519.51,7.499e-05,2]
[344364228,1733377833683,-519.51,7.499e-05,2]
[344364229,1733377833692,-519.51,7.499e-05,2]
[344364230,1733377833702,-519.51,7.499e-05,2]
[344364231,1733377833714,-519.51,7.499e-05,2]
[344364232,1733377833724,-519.51,7.499e-05,2]
[344364233,1733377833734,-519.51,7.499e-05,2]
[344364234,1733377833744,-519.67931762,7.499e-05,2]
[344364235,1733377833753,-872.04,7.499e-05,2]
[344364236,1733377833763,-872.04,7.499e-05,2]
[344364237,1733377833773,-872.04,7.499e-05,2]
[344364238,1733377833783,-872.04,7.499e-05,2]
[344364239,1733377833792,-872.04,7.499e-05,2]
[344364240,1733377833802,-872.04,7.499e-05,2]
[344364241,1733377833811,-872.04,7.499e-05,2]
[344364242,1733377833821,-872.04,7.499e-05,2]
[344364243,1733377833831,-872.04,7.499e-05,2]
[344364244,1733377833840,-872.04,7.499e-05,2]
[344364245,1733377833851,-872.04,7.499e-05,2]
[344364246,1733377833861,-872.04,7.499e-05,2]
[344364247,1733377833870,-872.04,7.499e-05,2]
[344364248,1733377833880,-872.04,7.499e-05,2]
[344364249,1733377833890,-872.04,7.499e-05,2]
[344364250,1733377833900,-872.04,7.499e-05,2]
[344364251,1733377833911,-872.04,7.499e-05,2]
[344364252,1733377833920,-872.04,7.499e-05,2]
[344364253,1733377833931,-872.04,7.499e-05,2]
[344364254,1733377833941,-872.04,7.499e-05,2]
[344364255,1733377833950,-872.04,7.499e-05,2]
[344364256,1733377833962,-872.04,7.499e-05,2]
[344364257,1733377833971,-872.04,7.499e-05,2]
[344364258,1733377833981,-872.26164226,7.499e-05,2]
[344364259,1733377833991,-500.0,7.499e-05,2]
[344364260,1733377834001,-500.0,7.499e-05,2]
[344364261,1733377834012,-500.0,7.499e-05,2]
[344364262,1733377834022,-500.0,7.499e-05,2]
[344364263,1733377834032,-548.37044239,7.499e-05,2]
[344364264,1733377834043,-498.39253261,7.499e-05,2]
[344364265,1733377834053,-500.0,7.499e-05,2]
[344364266,1733377834063,-500.0,7.499e-05,2]
[344364267,1733377834073,-845711.98306728,7.5e-05,2]
[344364268,1733377834125,-338.22623352,7.5e-05,2]
[344364269,1733377834158,-936721.66831632,7.5e-05,2]
[344364270,1733377834173,-1370.48421096,7.5e-05,2]
[344364271,1733377834195,-4535.35,7.5e-05,2]
[344364272,1733377834221,-685663.16911954,7.5e-05,2]
[344364273,1733377834294,-275.05500551,7.5e-05,2]
[344364274,1733377834315,-191024.88861231,7.5e-05,2]
[344364275,1733377834327,-12100.0,7.5e-05,2]
[344364276,1733377834355,-10320.0,7.5e-05,2]
[344364277,1733377834368,-19179.0663001,7.5e-05,2]
[344364287,1733377837935,-2495.07221379,7.397e-05,2]
[344364289,1733377837946,-500.0,7.499e-05,2]
[344364290,1733377837956,-405.74496756,7.499e-05,2]
[344364291,1733377837967,-148117.85039183,7.5e-05,2]
[344364292,1733377837979,-20555598.1005078,7.5e-05,2]
[344364294,1733377837995,-26374.33104997,7.5e-05,2]
[344364298,1733377838026,-926.19243692,7.5e-05,2]
[344364299,1733377838055,-8246.7,7.5e-05,2]
[344364300,1733377838167,-289.4002629,7.5e-05,2]
[344364321,1733377838819,-216052.59223453,7.5e-05,2]
[344364328,1733377839945,-57751.34957815,7.5e-05,2]
[344364329,1733377840069,-1003.13547213,7.5e-05,2]
[344364330,1733377840243,-500.0,7.499e-05,2]
[344364331,1733377840252,-500.0,7.499e-05,2]
[344364332,1733377840262,-9216.0,7.5e-05,2]
[344364376,1733377843370,-229.80017354,7.499e-05,2]
[344364377,1733377843382,-500.0,7.499e-05,2]
[344364378,1733377843392,-166.12088841,7.499e-05,2]
[344364379,1733377843402,-22.74777905,7.5e-05,2]
[344364380,1733377843414,-5874.86554093,7.5e-05,2]
[344364381,1733377843468,-5820.79014545,7.5e-05,2]
[344364382,1733377843483,-1372.69140208,7.5e-05,2]
[344364383,1733377843494,-89916.45269588,7.5e-05,2]
[344364384,1733377843510,-429.276,7.5e-05,2]
[344364385,1733377843523,-392.0129994,7.5e-05,2]
[344364386,1733377843544,-3215.51755198,7.5e-05,2]
[344364387,1733377843558,-7107.77887876,7.5e-05,2]
[344364388,1733377843573,-25542.50000001,7.5e-05,2]
[344364389,1733377843589,-4647.28582679,7.5e-05,2]
[344364390,1733377843610,-203943.17582722,7.5e-05,2]
[344364391,1733377843703,-3317.16899937,7.5e-05,2]
[344364404,1733377845933,-5620.60547604,7.5e-05,2]
[344364407,1733377845946,-525.49829766,7.5e-05,2]
[344364408,1733377845965,-651930.87316154,7.5e-05,2]
[344364409,1733377846000,-3871.70767218,7.5e-05,2]
[344364410,1733377846019,-81331.8261916,7.5e-05,2]
[344364411,1733377846128,-3101.55456,7.5e-05,2]
[344364412,1733377846328,-2220.28165,7.5e-05,2]
[344364413,1733377890441,-50000.0,0.0002,120]
[344364414,1733377948583,250.0,6.635e-05,2]
[344364416,1733378088115,197.69,6.817e-05,2]
[344364417,1733378485950,300.0,6e-05,2]
[344364418,1733378488060,600.0,6.1e-05,2]
[344364419,1733378490219,1000.0,6.2e-05,2]
[344364420,1733378492331,1300.0,6.3e-05,2]
[344364421,1733378494436,1700.0,6.4e-05,2]
[344364422,1733378496555,300.0,6.5e-05,2]
[344364423,1733378498656,300.0,6.6e-05,2]
[344364424,1733378501424,300.0,6.7e-05,2]
[344364425,1733378501496,-263.16423338,0.00010429,7]
[344364426,1733378501527,-3372.25040539,0.00012,10]
[344364427,1733378502980,300.0,6.8e-05,2]
[344364428,1733378505087,728.0,6.9e-05,2]
[344364431,1733378597268,10000.0,0.0001,30]
[344364432,1733378597671,250.0,6.669e-05,2]
[344364433,1733378622947,10000.0,0.0001,30]
[344364434,1733378653157,10000.0,0.0001,30]
[344364435,1733378671275,10000.0,0.0001021,10]
[344364436,1733378692999,10000.0,0.0001021,10]
[344364437,1733378719643,10000.0,0.0001021,10]
[344364439,1733378738689,10000.0,0.0001021,10]
[344364441,1733378765938,10000.0,0.0001021,10]
[344364442,1733378770094,5000.22331818,0.0001,7]
[344364443,1733378793070,10000.0,0.0001021,10]
[344364444,1733378809179,10000.0,0.0001021,10]
[344364458,1733379032559,-300.0,7.203e-05,2]
[344364459,1733379032570,-681.91915745,7.204e-05,2]
[344364460,1733379032581,-44.88084255,7.204e-05,2]
[344364461,1733379032686,-945.71573199,7.204e-05,2]
[344364462,1733379032718,-22459.40342546,7.204e-05,2]
[344364463,1733379032728,-364.58189079,7.351e-05,2]
[344364464,1733379032738,-177.87628316,7.351e-05,2]
[344364465,1733379032747,-386.89,7.397e-05,2]
[344364466,1733379032757,-442.4562,7.399e-05,2]
[344364467,1733379032767,-150.0,7.399e-05,2]
[344364468,1733379032776,-1135.3871,7.4e-05,2]
[344364469,1733379032787,-143923.8602,7.4e-05,2]
[344364470,1733379032796,-177.87628314,7.406e-05,2]
[344364471,1733379032806,-867.881,7.46e-05,2]
[344364472,1733379032816,-3761.0,7.46e-05,2]
[344364473,1733379032826,-1252.0,7.46e-05,2]
[344364474,1733379032835,-177.87628314,7.46e-05,2]
[344364476,1733379032845,-507.52443515,7.473e-05,2]
[344364478,1733379032859,-500.0,7.473e-05,2]
[344364480,1733379032868,-776.41,7.48e-05,2]
[344364482,1733379032878,-435.36,7.48e-05,2]
[344364484,1733379032887,-435.43,7.48e-05,2]
[344364485,1733379032897,-500.0,7.498e-05,2]
[344364486,1733379032907,-500.0,7.498e-05,2]
[344364488,1733379032916,-553.50581073,7.498e-05,2]
[344364490,1733379032927,-500.0,7.498e-05,2]
[344364492,1733379032936,-500.0,7.498e-05,2]
[344364494,1733379032946,-500.0,7.498e-05,2]
[344364496,1733379032955,-500.0,7.498e-05,2]
[344364498,1733379032964,-500.0,7.498e-05,2]
[344364500,1733379032974,-500.0,7.499e-05,2]
[344364501,1733379032983,-502.30105007,7.499e-05,2]
[344364503,1733379032992,-500.94097407,7.499e-05,2]
[344364505,1733379033001,-500.0,7.499e-05,2]
[344364506,1733379033011,-500.0,7.499e-05,2]
[344364507,1733379033022,-500.0,7.499e-05,2]
[344364508,1733379033032,-500.0,7.499e-05,2]
[344364509,1733379033043,-500.0,7.499e-05,2]
[344364510,1733379033053,-500.0,7.499e-05,2]
[344364511,1733379033062,-500.0,7.499e-05,2]
[344364512,1733379033072,-500.0,7.499e-05,2]
[344364513,1733379033082,-500.0,7.499e-05,2]
[344364514,1733379033092,-500.0,7.499e-05,2]
[344364515,1733379033101,-330.07118338,7.499e-05,2]
[344364516,1733379033111,-158.08940468,7.499e-05,2]
[344364517,1733379033121,-500.0,7.499e-05,2]
[344364518,1733379033131,-649.36,7.499e-05,2]
[344364519,1733379033141,-250.0,7.499e-05,2]
[344364520,1733379033151,-192.33213353,7.499e-05,2]
[344364521,1733379033162,-500.0,7.499e-05,2]
[344364522,1733379033175,-181.56799736,7.499e-05,2]
[344364523,1733379033186,-500.57716664,7.499e-05,2]
[344364524,1733379033196,-500.0,7.499e-05,2]
[344364525,1733379033206,-234.51821035,7.499e-05,2]
[344364526,1733379033217,-500.0,7.499e-05,2]
[344364527,1733379033227,-500.0,7.499e-05,2]
[344364528,1733379033238,-500.0,7.499e-05,2]
[344364529,1733379033248,-500.0,7.499e-05,2]
[344364530,1733379033259,-500.0,7.499e-05,2]
[344364531,1733379033269,-501.5415408,7.499e-05,2]
[344364532,1733379033279,-502.99456969,7.499e-05,2]
[344364533,1733379033289,-256.82396052,7.499e-05,2]
[344364534,1733379033299,-500.0,7.499e-05,2]
[344364535,1733379033309,-500.0,7.499e-05,2]
[344364536,1733379033318,-500.0,7.499e-05,2]
[344364537,1733379033328,-500.0,7.499e-05,2]
[344364538,1733379033338,-500.0,7.499e-05,2]
[344364539,1733379033347,-500.0,7.499e-05,2]
[344364540,1733379033357,-500.0,7.499e-05,2]
[344364541,1733379033367,-500.0,7.499e-05,2]
[344364542,1733379033377,-500.0,7.499e-05,2]
[344364543,1733379033386,-558.36290445,7.499e-05,2]
[344364544,1733379033396,-500.0,7.499e-05,2]
[344364545,1733379033406,-500.0,7.499e-05,2]
[344364546,1733379033415,-500.0,7.499e-05,2]
[344364547,1733379033427,-500.40814069,7.499e-05,2]
[344364548,1733379033437,-500.0,7.499e-05,2]
[344364549,1733379033447,-500.0,7.499e-05,2]
[344364550,1733379033456,-346.01143121,7.499e-05,2]
[344364551,1733379033466,-500.0,7.499e-05,2]
[344364552,1733379033476,-500.0,7.499e-05,2]
[344364553,1733379033486,-500.0,7.499e-05,2]
[344364554,1733379033496,-500.0,7.499e-05,2]
[344364555,1733379033505,-500.0,7.499e-05,2]
[344364556,1733379033515,-500.0,7.499e-05,2]
[344364557,1733379033524,-500.0,7.499e-05,2]
[344364558,1733379033535,-500.0,7.499e-05,2]
[344364559,1733379033544,-500.0,7.499e-05,2]